fUST/lending_fUST_20251124
["ID","MTS","AMOUNT","RATE_DAILY","PERIOD"]
[394721653,1763916638235,-250.0,0.00010624,2]
[394721654,1763916638245,-250.0,0.00010624,2]
[394721655,1763916638254,-250.0,0.00010624,2]
[394721656,1763916638264,-250.0,0.00010624,2]
[394721657,1763916638274,-250.0,0.00010624,2]
[394721658,1763916638284,-209.40437684,0.00010624,2]
[394721659,1763916638293,-500.0,0.00010959,2]
[394721660,1763916638303,-500.0,0.00010959,2]
[394721661,1763916638313,-500.0,0.00010959,2]
[394721662,1763916638322,-500.0,0.00010959,2]
[394721663,1763916638332,-500.0,0.00010959,2]
[394721664,1763916638341,-500.0,0.00010959,2]
[394721665,1763916638351,-500.0,0.00010959,2]
[394721666,1763916638360,-615.09200915,0.00010959,2]
[394721667,1763916638370,-500.0,0.00010959,2]
[394721668,1763916638379,-500.0,0.00010959,2]
[394721669,1763916638392,-500.0,0.00010959,2]
[394721670,1763916638401,-500.0,0.00010959,2]
[394721671,1763916638411,-500.0,0.00010959,2]
[394721672,1763916638420,-1000.0,0.00011042,2]
[394721673,1763916638431,-201.93286099,0.00011096,2]
[394721674,1763916638440,-209.40437684,0.00011644,2]
[394721675,1763916638449,-1000.0,0.00012146,2]
[394721676,1763916638459,-244.0,0.00012146,2]
[394721677,1763916638468,-217.15233878,0.00012192,2]
[394721678,1763916638478,-225.18697532,0.0001274,2]
[394721679,1763916638488,-266.36741291,0.00013288,2]
[394721680,1763916638497,-1000.0,0.0001336,2]
[394721681,1763916638510,-492.0,0.0001336,2]
[394721682,1763916638520,-500.0,0.00013699,2]
[394721683,1763916638529,-500.0,0.00013699,2]
[394721684,1763916638539,-500.0,0.00013699,2]
[394721685,1763916638548,-500.0,0.00014384,2]
[394721686,1763916638558,-163.012,0.00014384,2]
[394721687,1763916638567,-1000.0,0.00014696,2]
[394721688,1763916638577,-791.0,0.00014696,2]
[394721689,1763916638586,-4492.0,0.00015,2]
[394721690,1763916638596,-4492.0,0.00015007,2]
[394721691,1763916638605,-39803.60781061,0.00015028,2]
[394721692,1763916638615,-299.902445,0.00015068,2]
[394721693,1763916638624,-1000.0,0.00015068,2]
[394721694,1763916638634,-800.0,0.00015068,2]
[394721695,1763916638644,-151.0,0.000152,2]
[394721696,1763916638653,-437.57258638,0.00015241,2]
[394721697,1763916638663,-160.0,0.00015267,2]
[394721698,1763916638673,-4492.0,0.00015293,2]
[394721699,1763916638682,-4492.0,0.00015318,2]
[394721700,1763916638692,-590.25,0.00015342,2]
[394721701,1763916638701,-500.0,0.0001537,2]
[394721702,1763916638710,-500.0,0.00015393,2]
[394721703,1763916638719,-500.0,0.000154,2]
[394721704,1763916638729,-500.0,0.00015428,2]
[394721705,1763916638739,-169.57469,0.00015443,3]
[394721706,1763916638748,-4492.0,0.00015545,2]
[394721707,1763916638758,-837.00259935,0.00015554,2]
[394721708,1763916638768,-630.0,0.00015724,2]
[394721709,1763916638777,-989.0,0.00015724,2]
[394721710,1763916638786,-2152.0,0.00015724,2]
[394721711,1763916638796,-202.376,0.00015725,2]
[394721712,1763916638805,-4492.0,0.00015809,2]
[394721713,1763916638814,-260.0,0.00015815,2]
[394721714,1763916638824,-151.0,0.000159,2]
[394721715,1763916638834,-150.0,0.00016,2]
[394721716,1763916638843,-500.0,0.00016029,2]
[394721717,1763916638853,-167.082364,0.000161,3]
[394721718,1763916638862,-155.774895,0.000161,3]
[394721719,1763916638872,-500.0,0.00016113,2]
[394721720,1763916638882,-500.0,0.00016127,2]
[394721721,1763916638892,-338.98128639,0.00016135,2]
[394721722,1763916638902,-1600.0,0.00016164,2]
[394721723,1763916638911,-1000.0,0.00016166,2]
[394721724,1763916638921,-1000.0,0.00016166,2]
[394721725,1763916638931,-500.0,0.00016232,2]
[394721726,1763916638941,-500.0,0.00016271,2]
[394721727,1763916638953,-360.0,0.00016363,2]
[394721728,1763916638962,-2000.0,0.000164,2]
[394721729,1763916638971,-590.25,0.00016438,2]
[394721730,1763916638981,-38000.0,0.00016438,3]
[394721731,1763916638991,-500.0,0.00016438,2]
[394721732,1763916639002,-500.0,0.00016438,2]
[394721733,1763916639011,-500.0,0.00016438,2]
[394721734,1763916639021,-500.0,0.00016438,2]
[394721735,1763916639031,-500.0,0.00016438,2]
[394721736,1763916639041,-500.0,0.00016438,2]
[394721737,1763916639052,-500.0,0.00016438,2]
[394721738,1763916639062,-500.0,0.00016438,2]
[394721739,1763916639071,-500.0,0.00016438,2]
[394721740,1763916639081,-500.0,0.00016438,2]
[394721741,1763916639090,-500.0,0.00016438,2]
[394721742,1763916639100,-500.0,0.00016438,2]
[394721743,1763916639109,-500.0,0.00016438,2]
[394721744,1763916639119,-500.0,0.00016438,2]
[394721745,1763916639129,-500.0,0.00016438,2]
[394721746,1763916639140,-500.0,0.00016438,2]
[394721747,1763916639150,-500.0,0.00016438,2]
[394721748,1763916639162,-500.0,0.00016438,2]
[394721749,1763916639172,-500.0,0.00016438,2]
[394721750,1763916639183,-500.0,0.00016438,2]
[394721751,1763916639196,-500.0,0.00016438,2]
[394721752,1763916639206,-500.0,0.00016438,2]
[394721753,1763916639217,-500.0,0.00016438,2]
[394721754,1763916639227,-500.0,0.00016438,2]
[394721755,1763916639238,-500.0,0.00016438,2]
[394721756,1763916639248,-500.0,0.00016438,2]
[394721757,1763916639259,-500.0,0.00016438,2]
[394721758,1763916639269,-500.0,0.00016438,2]
[394721759,1763916639280,-500.0,0.00016438,2]
[394721760,1763916639289,-500.0,0.00016438,2]
[394721761,1763916639463,-500.0,0.00016438,2]
[394721762,1763916639482,-500.0,0.00016438,2]
[394721763,1763916639492,-500.0,0.00016438,2]
[394721764,1763916639501,-500.0,0.00016438,2]
[394721765,1763916639511,-500.0,0.00016438,2]
[394721766,1763916639520,-500.0,0.00016438,2]
[394721767,1763916639529,-500.0,0.00016438,2]
[394721768,1763916639539,-500.0,0.00016438,2]
[394721769,1763916639548,-500.0,0.00016438,2]
[394721770,1763916639558,-500.0,0.00016438,2]
[394721771,1763916639567,-500.0,0.00016438,2]
[394721772,1763916639576,-500.0,0.00016438,2]
[394721773,1763916639586,-500.0,0.00016438,2]
[394721774,1763916639595,-500.0,0.00016438,2]
[394721775,1763916639604,-500.0,0.00016438,2]
[394721776,1763916639613,-500.0,0.00016438,2]
[394721778,1763916639623,-1855.30806299,0.00016438,2]
[394721779,1763916639633,-1855.30806299,0.00016438,2]
[394721780,1763916639642,-1855.30806299,0.00016438,2]
[394721781,1763916639652,-1855.30806299,0.00016438,2]
[394721782,1763916639661,-1855.30806299,0.00016438,2]
[394721783,1763916639670,-1855.30806299,0.00016438,2]
[394721784,1763916639679,-1855.30806299,0.00016438,2]
[394721785,1763916639688,-1855.30806299,0.00016438,2]
[394721786,1763916639697,-1855.30806299,0.00016438,2]
[394721787,1763916639706,-1855.30806299,0.00016438,2]
[394721788,1763916639715,-1855.30806299,0.00016438,2]
[394721789,1763916639725,-1855.30806299,0.00016438,2]
[394721790,1763916639734,-1855.30806299,0.00016438,2]
[394721791,1763916639743,-1855.30806299,0.00016438,2]
[394721792,1763916639752,-1855.30806299,0.00016438,2]
[394721793,1763916639761,-1855.30806299,0.00016438,2]
[394721794,1763916639771,-1855.30806299,0.00016438,2]
[394721795,1763916639780,-1855.30806299,0.00016438,2]
[394721796,1763916639789,-1855.30806299,0.00016438,2]
[394721797,1763916639798,-1855.30806299,0.00016438,2]
[394721798,1763916639807,-1855.30806299,0.00016438,2]
[394721799,1763916639817,-1855.30806299,0.00016438,2]
[394721800,1763916639827,-1855.30806299,0.00016438,2]
[394721802,1763916639837,-1855.30806299,0.00016438,2]
[394721804,1763916639846,-1855.30806299,0.00016438,2]
[394721806,1763916639855,-1855.30806299,0.00016438,2]
[394721808,1763916639864,-1855.30806299,0.00016438,2]
[394721810,1763916639873,-1855.30806299,0.00016438,2]
[394721812,1763916639882,-1855.30806299,0.00016438,2]
[394721814,1763916639891,-1855.30806299,0.00016438,2]
[394721816,1763916639900,-1855.30806299,0.00016438,2]
[394721818,1763916639909,-1855.30806299,0.00016438,2]
[394721820,1763916639918,-1855.30806299,0.00016438,2]
[394721822,1763916639927,-1855.30806299,0.00016438,2]
[394721823,1763916639937,-1855.30806299,0.00016438,2]
[394721825,1763916639946,-1855.30806299,0.00016438,2]
[394721827,1763916639955,-1855.30806299,0.00016438,2]
[394721829,1763916639965,-1855.30806299,0.00016438,2]
[394721831,1763916639974,-1855.30806299,0.00016438,2]
[394721833,1763916639983,-1855.30806299,0.00016438,2]
[394721835,1763916639993,-1855.30806297,0.00016438,2]
[394721837,1763916640001,-1855.30806297,0.00016438,2]
[394721839,1763916640011,-1855.30806297,0.00016438,2]
[394721841,1763916640020,-500.0,0.00016473,2]
[394721843,1763916640030,-500.0,0.00016473,2]
[394721845,1763916640040,-501.72220391,0.00016473,2]
[394721847,1763916640050,-500.0,0.00016473,2]
[394721849,1763916640059,-501.69066645,0.00016473,2]
[394721851,1763916640068,-500.0,0.00016473,2]
[394721853,1763916640079,-500.0,0.00016473,2]
[394721855,1763916640088,-6175.43202945,0.00016485,2]
[394721857,1763916640098,-500.0,0.00016566,2]
[394721859,1763916640107,-500.51836577,0.0001658,2]
[394721861,1763916640116,-151.0,0.000166,2]
[394721863,1763916640125,-1279.972188,0.00016684,2]
[394721865,1763916640136,-167.082364,0.00016704,2]
[394721867,1763916640145,-293.85068442,0.0001672,2]
[394721869,1763916640154,-500.0,0.00016909,2]
[394721871,1763916640163,-460.0,0.00016911,2]
[394721873,1763916640173,-20154.27183603,0.00017,2]
[394721875,1763916640182,-150.0,0.00017,2]
[394721877,1763916640197,-500.0,0.00017,2]
[394721879,1763916640216,-151.0,0.00017,2]
[394721881,1763916640226,-151.0,0.00017,2]
[394721883,1763916640235,-151.0,0.00017,2]
[394721885,1763916640244,-151.0,0.00017,2]
[394721887,1763916640253,-151.0,0.00017,2]
[394721889,1763916640262,-151.0,0.00017,2]
[394721891,1763916640271,-151.0,0.00017,2]
[394721893,1763916640280,-272.850773,0.00017,2]
[394721895,1763916640289,-272.850773,0.00017,2]
[394721897,1763916640298,-272.850773,0.00017,2]
[394721899,1763916640308,-272.850773,0.00017,2]
[394721901,1763916640317,-646.8401451,0.00017021,2]
[394721903,1763916640327,-262.50758896,0.00017021,2]
[394721905,1763916640336,-209.34859226,0.00017021,2]
[394721907,1763916640345,-511.8593,0.00017021,2]
[394721909,1763916640354,-511.8593,0.00017021,2]
[394721911,1763916640363,-511.8593,0.00017021,2]
[394721913,1763916640372,-511.8593,0.00017021,2]
[394721915,1763916640381,-196.406415,0.00017021,2]
[394721917,1763916640390,-196.406415,0.00017021,2]
[394721919,1763916640400,-196.406415,0.00017021,2]
[394721921,1763916640409,-196.406415,0.00017021,2]
[394721923,1763916640418,-235.72450235,0.0001703,2]
[394721925,1763916640427,-500.0,0.00017075,2]
[394721927,1763916640436,-151.0,0.000171,2]
[394721929,1763916640447,-500.0,0.00017207,2]
[394721931,1763916640456,-500.0,0.00017236,2]
[394721934,1763916640465,-289.88636044,0.00017241,2]
[394721936,1763916640474,-2400.0,0.0001726,2]
[394721938,1763916640483,-501.73472042,0.00017273,2]
[394721940,1763916640493,-500.0,0.00017273,2]
[394721942,1763916640501,-151.0,0.000173,2]
[394721944,1763916640511,-2000.0,0.000174,2]
[394721946,1763916640520,-560.0,0.00017458,2]
[394721948,1763916640530,-150.0,0.00017507,2]
[394721950,1763916640538,-256.75655889,0.00017525,2]
[394721952,1763916640548,-590.25,0.00017534,2]
[394721954,1763916640557,-2124.66285169,0.000176,2]
[394721955,1763916640566,-200.0,0.000176,3]
[394721958,1763916640576,-500.0,0.00017646,2]
[394721959,1763916640585,-361.0,0.00017693,2]
[394721962,1763916640594,-17766.80162813,0.00017721,2]
[394721963,1763916640603,-500.0,0.0001777,2]
[394721966,1763916640613,-1000.0,0.00017783,2]
[394721968,1763916640623,-1000.0,0.00017783,2]
[394721970,1763916640632,-579.0,0.00017783,2]
[394721972,1763916640641,-667.0,0.00017798,3]
[394721974,1763916640651,-511.8593,0.000178,2]
[394721976,1763916640660,-511.8593,0.000178,2]
[394721978,1763916640668,-511.8593,0.000178,2]
[394721980,1763916640677,-511.8593,0.000178,2]
[394721982,1763916640686,-196.406415,0.000178,2]
[394721984,1763916640696,-196.406415,0.000178,2]
[394721986,1763916640705,-196.406415,0.000178,2]
[394721988,1763916640717,-196.406415,0.000178,2]
[394721990,1763916640726,-151.0,0.000178,2]
[394721992,1763916640734,-151.0,0.000178,2]
[394721994,1763916640743,-228.64947,0.000178,2]
[394721995,1763916640753,-151.0,0.000178,2]
[394721997,1763916640762,-151.0,0.000178,2]
[394721999,1763916640771,-151.0,0.000178,2]
[394722001,1763916640780,-151.0,0.000178,2]
[394722003,1763916640789,-272.850773,0.000178,2]
[394722005,1763916640798,-272.850773,0.000178,2]
[394722007,1763916640807,-272.850773,0.000178,2]
[394722009,1763916640816,-272.850773,0.000178,2]
[394722011,1763916640825,-59218.03001399,0.000178,3]
[394722014,1763916640840,-4617.06328202,0.000178,3]
[394722016,1763916640851,-340.33332483,0.000178,3]
[394722053,1763916641183,-1599.75791277,9.9e-05,2]
[394722523,1763916646275,-14372.19127506,9.9e-05,2]
[394722529,1763916646328,-14969.34737482,9.9e-05,2]
[394722531,1763916646340,-18191.91999997,9.9e-05,2]
[394723562,1763917404918,175.0,0.0002,30]
[394723565,1763917543289,-546.35857348,7.596e-05,2]
[394723566,1763917543310,-199.37897177,7.635e-05,2]
[394723567,1763917543330,-546.35857348,7.673e-05,2]
[394723568,1763917543353,-281.74074077,8.396e-05,2]
[394723569,1763917561831,788.77,1e-05,2]
[394723570,1763917562137,788.77,1e-05,2]
[394723571,1763917562447,788.77,1e-05,2]
[394723572,1763917562766,788.77,1.1e-05,2]
[394723573,1763917563129,788.77,1.1e-05,2]
[394723574,1763917563414,788.77,1.1e-05,2]
[394723575,1763917563774,788.77,1.1e-05,2]
[394723576,1763917564724,788.77,1.1e-05,2]
[394723577,1763917565118,788.77,1.2e-05,2]
[394723578,1763917565396,788.77,1.2e-05,2]
[394723579,1763917565730,788.77,1.2e-05,2]
[394723580,1763917566046,788.77,1.2e-05,2]
[394723581,1763917566358,788.77,1.2e-05,2]
[394723582,1763917566647,788.77,1.3e-05,2]
[394723583,1763917567109,788.77,1.3e-05,2]
[394723584,1763917567875,788.77,1.3e-05,2]
[394723585,1763917567934,788.77,1.3e-05,2]
[394723586,1763917568000,788.77,1.3e-05,2]
[394723587,1763917568298,788.77,1.4e-05,2]
[394723588,1763917568595,788.77,1.4e-05,2]
[394723589,1763917568877,788.77,1.4e-05,2]
[394723590,1763917569849,788.77,1.4e-05,2]
[394723591,1763917570306,788.77,1.4e-05,2]
[394723592,1763917570643,788.77,1.5e-05,2]
[394723593,1763917570914,788.77,1.5e-05,2]
[394723594,1763917571228,788.77,1.5e-05,2]
[394723595,1763917571506,788.77,1.5e-05,2]
[394723596,1763917571874,788.77,1.6e-05,2]
[394723597,1763917572172,788.77,1.6e-05,2]
[394723598,1763917572508,788.77,1.6e-05,2]
[394723599,1763917572911,788.77,1.6e-05,2]
[394723600,1763917573188,788.77,1.6e-05,2]
[394723601,1763917574139,788.77,1.7e-05,2]
[394723602,1763917574469,788.77,1.7e-05,2]
[394723603,1763917574746,788.77,1.7e-05,2]
[394723604,1763917575032,788.77,1.7e-05,2]
[394723605,1763917575343,788.77,1.7e-05,2]
[394723606,1763917575571,788.77,1.8e-05,2]
[394723607,1763917575856,788.77,1.8e-05,2]
[394723608,1763917576162,788.77,1.8e-05,2]
[394723609,1763917576429,788.77,1.8e-05,2]
[394723610,1763917576716,788.77,1.8e-05,2]
[394723611,1763917577042,788.77,1.9e-05,2]
[394723612,1763917578380,788.77,1.9e-05,2]
[394723613,1763917578567,788.77,1.9e-05,2]
[394723614,1763917578939,788.77,1.9e-05,2]
[394723615,1763917579276,788.77,1.9e-05,2]
[394723616,1763917579531,788.77,2e-05,2]
[394723617,1763917579858,788.77,2e-05,2]
[394723618,1763917621786,157.74,1e-05,2]
[394723619,1763917622062,157.74,1.3e-05,2]
[394723620,1763917622550,157.74,1.5e-05,2]
[394723621,1763917622843,157.74,1.8e-05,2]
[394723622,1763917623125,157.74,2e-05,2]
[394723623,1763917628082,-191.34643683,8.147e-05,2]
[394723624,1763917628105,-191.34643683,8.229e-05,2]
[394723625,1763917628126,-1051.8287137,8.312e-05,2]
[394723626,1763917628148,-300.0,8.395e-05,2]
[394723627,1763917628169,-50000.0,8.396e-05,2]
[394723628,1763917628193,-218.25925923,8.396e-05,2]
[394723629,1763917628215,-331.36463803,8.396e-05,2]
[394723630,1763917628243,-500.0,8.396e-05,2]
[394723631,1763917628272,-500.0,8.396e-05,2]
[394723632,1763917628299,-500.0,8.396e-05,2]
[394723633,1763917628326,-503.17989648,8.396e-05,2]
[394723634,1763917628351,-500.0,8.396e-05,2]
[394723635,1763917628373,-500.0,8.396e-05,2]
[394723636,1763917628396,-500.0,8.396e-05,2]
[394723637,1763917628421,-500.0,8.396e-05,2]
[394723638,1763917628442,-500.0,8.396e-05,2]
[394723639,1763917628468,-500.0,8.396e-05,2]
[394723640,1763917628492,-500.0,8.396e-05,2]
[394723641,1763917628514,-384.45510735,8.396e-05,2]
[394723642,1763917628540,-500.0,8.396e-05,2]
[394723643,1763917628568,-500.0,8.396e-05,2]
[394723644,1763917628593,-500.0,8.396e-05,2]
[394723645,1763917628618,-309.52154526,8.396e-05,2]
[394723646,1763917628642,-500.0,8.396e-05,2]
[394723647,1763917628667,-500.0,8.396e-05,2]
[394723648,1763917628689,-500.0,8.396e-05,2]
[394723649,1763917628716,-500.0,8.396e-05,2]
[394723650,1763917628740,-500.0,8.396e-05,2]
[394723651,1763917628762,-1200.0,8.396e-05,2]
[394723652,1763917628786,-300.0,8.397e-05,2]
[394723653,1763917628809,-300.0,8.397e-05,2]
[394723654,1763917628832,-300.0,8.397e-05,2]
[394723655,1763917628853,-300.0,8.397e-05,2]
[394723656,1763917628874,-300.0,8.397e-05,2]
[394723657,1763917628896,-300.0,8.397e-05,2]
[394723658,1763917628918,-300.0,8.397e-05,2]
[394723659,1763917628940,-300.0,8.397e-05,2]
[394723660,1763917628962,-300.0,8.397e-05,2]
[394723661,1763917628985,-300.0,8.397e-05,2]
[394723662,1763917629010,-300.0,8.397e-05,2]
[394723663,1763917629033,-300.0,8.397e-05,2]
[394723664,1763917629056,-300.0,8.397e-05,2]
[394723665,1763917629080,-300.0,8.397e-05,2]
[394723666,1763917629105,-300.0,8.397e-05,2]
[394723667,1763917629128,-160.0,8.689e-05,2]
[394723668,1763917629150,-300.97691807,9.107e-05,2]
[394723669,1763917629176,-1200.0,9.236e-05,2]
[394723670,1763917629198,-353.29325365,9.312e-05,2]
[394723671,1763917629220,-235.26718669,9.635e-05,2]
[394723672,1763917629244,-500.0,9.873e-05,2]
[394723673,1763917629267,-429.50080291,9.899e-05,2]
[394723674,1763917629291,-500.0,9.899e-05,2]
[394723675,1763917629312,-500.0,9.899e-05,2]
[394723676,1763917629333,-500.0,9.899e-05,2]
[394723677,1763917629354,-500.0,9.899e-05,2]
[394723678,1763917629376,-500.0,9.899e-05,2]
[394723679,1763917629398,-223.41831808,9.899e-05,2]
[394723680,1763917629419,-500.0,9.899e-05,2]
[394723681,1763917629439,-500.0,9.899e-05,2]
[394723682,1763917629460,-500.0,9.899e-05,2]
[394723683,1763917629482,-500.0,9.899e-05,2]
[394723684,1763917629506,-500.0,9.899e-05,2]
[394723685,1763917629529,-500.0,9.899e-05,2]
[394723686,1763917629555,-500.0,9.899e-05,2]
[394723687,1763917629577,-500.0,9.899e-05,2]
[394723688,1763917629600,-500.0,9.899e-05,2]
[394723689,1763917629620,-450.0,9.899e-05,2]
[394723690,1763917629644,-78389.15449543,9.9e-05,2]
[394723691,1763917629738,-48109.17511348,9.9e-05,2]
[394723692,1763917641098,-289.41559172,9.703e-05,2]
[394723693,1763917641121,-1599.75791277,9.801e-05,2]
[394723694,1763917641145,-5136.0340221,9.9e-05,2]
[394723695,1763917650092,-108401.21848997,9.9e-05,2]
[394723696,1763917748181,-707.19851431,9.603e-05,2]
[394723697,1763917748204,-3207.16438379,9.703e-05,2]
[394723698,1763917748226,-6798.0948302,9.801e-05,2]
[394723699,1763917748251,-649964.41787902,9.9e-05,2]
[394723700,1763917748274,-300.0,9.996e-05,2]
[394723701,1763917748547,-300.0,9.996e-05,2]
[394723702,1763917748573,-300.0,9.996e-05,2]
[394723703,1763917748601,-300.0,9.996e-05,2]
[394723704,1763917748627,-300.0,9.996e-05,2]
[394723705,1763917748651,-300.0,9.996e-05,2]
[394723706,1763917748674,-300.0,9.996e-05,2]
[394723707,1763917748696,-300.0,9.996e-05,2]
[394723708,1763917748721,-300.0,9.996e-05,2]
[394723709,1763917748743,-300.0,9.996e-05,2]
[394723710,1763917748765,-300.0,9.996e-05,2]
[394723711,1763917748788,-300.0,9.996e-05,2]
[394723712,1763917748808,-300.0,9.996e-05,2]
[394723713,1763917748831,-300.0,9.996e-05,2]
[394723714,1763917748854,-300.0,9.996e-05,2]
[394723715,1763917748878,-290.39862941,0.0001,2]
[394723716,1763917748899,-185.49421885,0.0001,2]
[394723717,1763917748920,-600.0,0.00010096,2]
[394723718,1763917748940,-512.69976703,0.00010421,2]
[394723719,1763917748960,-295.724,0.00010538,2]
[394723720,1763917748982,-2152.0,0.00010538,2]
[394723721,1763917749004,-989.0,0.00010538,2]
[394723722,1763917749025,-414.0,0.00010538,2]
[394723723,1763917749047,-500.0,0.00010958,2]
[394723724,1763917749069,-999.0,0.00010959,2]
[394723725,1763917749090,-250.0,0.00011017,2]
[394723726,1763917749114,-670.90017811,0.00011106,2]
[394723727,1763917762092,-49.09982189,0.00011106,2]
[394723728,1763917762112,-271.1554016,0.00011635,2]
[394723729,1763917762132,-500.0,0.00012054,2]
[394723730,1763917762154,-864.0,0.00012216,2]
[394723731,1763917762174,-500.0,0.0001315,2]
[394723732,1763917762195,-1000.0,0.00013438,2]
[394723733,1763917762214,-2152.0,0.00013538,2]
[394723734,1763917762234,-989.0,0.00013538,2]
[394723735,1763917762254,-414.0,0.00013538,2]
[394723736,1763917762276,-307.04361652,0.00013635,2]
[394723737,1763917762296,-507.59025667,0.00013687,2]
[394723738,1763917762317,-500.0,0.00013698,2]
[394723739,1763917762338,-500.0,0.00013698,2]
[394723740,1763917762358,-500.0,0.00013698,2]
[394723741,1763917762379,-521.45280781,0.00013698,2]
[394723742,1763917762399,-1000.0,0.00013699,2]
[394723743,1763917762418,-500.0,0.00013699,2]
[394723744,1763917762438,-500.0,0.00014246,2]
[394723745,1763917762456,-273.6702,0.00014384,2]
[394723746,1763917762476,-151.0,0.000147,2]
[394723747,1763917762495,-322.80875551,0.00014729,2]
[394723839,1763917838984,-169.671186,6.695e-05,2]
[394723840,1763917838994,-500.0,8.296e-05,2]
[394723841,1763917839003,-300.65056204,8.296e-05,2]
[394723842,1763917839012,-500.0,8.296e-05,2]
[394723843,1763917839022,-500.0,8.296e-05,2]
[394723844,1763917839031,-500.0,8.296e-05,2]
[394723845,1763917839040,-500.0,8.296e-05,2]
[394723846,1763917839049,-371.39282265,8.296e-05,2]
[394723847,1763917839059,-500.0,8.296e-05,2]
[394723848,1763917839069,-500.0,8.296e-05,2]
[394723849,1763917839079,-500.0,8.296e-05,2]
[394723850,1763917839089,-209.38390082,8.296e-05,2]
[394723851,1763917839099,-294.36542999,8.296e-05,2]
[394723852,1763917839118,-205.63457001,8.296e-05,2]
[394723853,1763917839128,-21190.6497444,8.297e-05,2]
[394723906,1763917841960,-1227.21692308,8.297e-05,2]
[394723907,1763917841971,-903.91792986,8.297e-05,2]
[394723908,1763917841982,-20185.00941916,8.297e-05,2]
[394723909,1763917841993,-4233.76347368,8.297e-05,2]
[394723910,1763917842282,-12044.57983222,8.297e-05,2]
[394723923,1763917845531,-9482.55617775,8.297e-05,2]
[394723925,1763917846476,-32450.20358091,8.297e-05,2]
[394723928,1763917847104,-17491.43477873,8.297e-05,2]
[394723929,1763917847115,-1194.0359751,8.297e-05,2]
[394723930,1763917847368,-780.57861407,8.297e-05,2]
[394723932,1763918733131,-191.44206224,7.165e-05,2]
[394723933,1763918733154,-190.34661073,7.201e-05,2]
[394723934,1763918733177,-136.3076871,7.237e-05,2]
[394723941,1763918813080,-163.46915366,7.186e-05,2]
[394723942,1763918813104,-4.7239346,7.259e-05,2]
[394723943,1763918833083,-158.74521906,7.186e-05,2]
[394723944,1763918833104,-158.74521906,7.259e-05,2]
[394723945,1763918833125,-169.95481,7.332e-05,2]
[394723946,1763918833144,-1802.723753,7.61e-05,2]
[394723947,1763918833168,-1623.0767912,8.197e-05,2]
[394723948,1763918833188,-8448.64161912,8.462e-05,2]
[394723963,1763918950134,-4038.49243802,8.377e-05,2]
[394723964,1763918959162,-18020.11180875,8.377e-05,2]
[394723965,1763918959183,-21597.02279347,8.462e-05,2]
[394723966,1763918963089,-1919.58582476,8.362e-05,2]
[394723967,1763918969097,-2637.06711648,8.362e-05,2]
[394724005,1763919032723,-253.08130421,8.361e-05,2]
[394724102,1763919039274,-246.91869579,8.361e-05,2]
[394724103,1763919039286,-210.45539342,8.361e-05,2]
[394724104,1763919039297,-559.97497586,8.361e-05,2]
[394724105,1763919039308,-356.19398065,8.361e-05,2]
[394724142,1763919040627,-143.80601935,8.361e-05,2]
[394724144,1763919040637,-500.0,8.361e-05,2]
[394724146,1763919040649,-500.0,8.361e-05,2]
[394724148,1763919040658,-500.0,8.361e-05,2]
[394724150,1763919040668,-500.0,8.361e-05,2]
[394724152,1763919040677,-7299.89555003,8.362e-05,2]
[394724459,1763919044583,-500.0,8.361e-05,2]
[394724461,1763919044593,-500.0,8.361e-05,2]
[394724463,1763919044602,-623.0767912,8.362e-05,2]
[394733189,1763920147147,-311.11111114,6.418e-05,2]
[394733190,1763920147166,-311.11111114,6.483e-05,2]